[Event "Titled Tuesday Blitz February 28 Early 2023"]
[White "Goltseva, Ekaterina"]
[Black "Tiarks, Jann-Christian"]
[WhiteFideId "24173770"]
[BlackFideId "12951595"]
[WhiteElo "2200"]
[BlackElo "2194"]
[Result "1-0"]
[Round "11"]
[TimeControl "180+2"]
[Date "2023.02.28"]
[WhiteClock "0:01:26"]
[BlackClock "0:00:03"]

1. d4 {[%clk 0:02:57]}  c5 {[%clk 0:02:57]} 2. Nf3 {[%clk 0:02:57]}  cxd4 {[%clk 0:02:58]} 3. Qxd4 {[%clk 0:02:58]}  Nc6 {[%clk 0:02:57]} 4. Qd1 {[%clk 0:02:58]}  d5 {[%clk 0:02:57]} 5. g3 {[%clk 0:02:59]}  Nf6 {[%clk 0:02:57]} 6. Bg2 {[%clk 0:02:59]}  Bg4 {[%clk 0:02:53]} 7. O-O {[%clk 0:02:59]}  e6 {[%clk 0:02:53]} 8. b3 {[%clk 0:02:55]}  Be7 {[%clk 0:02:53]} 9. Bb2 {[%clk 0:02:55]}  O-O {[%clk 0:02:53]} 10. Nbd2 {[%clk 0:02:54]}  Rc8 {[%clk 0:02:52]} 11. c4 {[%clk 0:02:54]}  Na5 {[%clk 0:02:44]} 12. Ne5 {[%clk 0:02:51]}  Bh5 {[%clk 0:02:44]} 13. cxd5 {[%clk 0:02:48]}  Nxd5 {[%clk 0:02:43]} 14. Ndf3 {[%clk 0:02:46]}  Bf6 {[%clk 0:02:39]} 15. Qd2 {[%clk 0:02:37]}  Nc6 {[%clk 0:02:32]} 16. e4 {[%clk 0:02:36]}  Ndb4 {[%clk 0:02:22]} 17. Nxc6 {[%clk 0:02:26]}  Qxd2 {[%clk 0:02:03]} 18. Nxd2 {[%clk 0:02:27]}  Rxc6 {[%clk 0:01:49]} 19. e5 {[%clk 0:02:21]}  Be7 {[%clk 0:01:43]} 20. Bxc6 {[%clk 0:02:19]}  Nxc6 {[%clk 0:01:40]} 21. f3 {[%clk 0:02:17]}  Bg6 {[%clk 0:01:38]} 22. Nc4 {[%clk 0:02:12]}  Bc5+ {[%clk 0:01:33]} 23. Kg2 {[%clk 0:02:12]}  b5 {[%clk 0:01:31]} 24. Nd6 {[%clk 0:02:10]}  Bxd6 {[%clk 0:01:26]} 25. exd6 {[%clk 0:02:11]}  Nb4 {[%clk 0:01:25]} 26. Rad1 {[%clk 0:02:03]}  Rd8 {[%clk 0:01:23]} 27. d7 {[%clk 0:02:01]}  Nd3 {[%clk 0:01:09]} 28. Rd2 {[%clk 0:01:58]}  Nxb2 {[%clk 0:01:05]} 29. Rxb2 {[%clk 0:01:56]}  Rxd7 {[%clk 0:01:05]} 30. Rff2 {[%clk 0:01:54]}  h6 {[%clk 0:01:00]} 31. Rfd2 {[%clk 0:01:52]}  Rc7 {[%clk 0:00:57]} 32. Rd8+ {[%clk 0:01:52]}  Kh7 {[%clk 0:00:56]} 33. Rbd2 {[%clk 0:01:53]}  Bf5 {[%clk 0:00:50]} 34. R8d7 {[%clk 0:01:53]}  Rc3 {[%clk 0:00:40]} 35. Rxa7 {[%clk 0:01:51]}  Bg6 {[%clk 0:00:37]} 36. a4 {[%clk 0:01:50]}  Rxb3 {[%clk 0:00:37]} 37. a5 {[%clk 0:01:50]}  Ra3 {[%clk 0:00:35]} 38. Rb2 {[%clk 0:01:48]}  Bd3 {[%clk 0:00:34]} 39. Ra8 {[%clk 0:01:45]}  Kg6 {[%clk 0:00:26]} 40. Kf2 {[%clk 0:01:44]}  Ra4 {[%clk 0:00:23]} 41. Ke3 {[%clk 0:01:43]}  Bc4 {[%clk 0:00:22]} 42. a6 {[%clk 0:01:41]}  Ra3+ {[%clk 0:00:19]} 43. Kd4 {[%clk 0:01:37]}  Rxf3 {[%clk 0:00:18]} 44. Kc5 {[%clk 0:01:37]}  Ra3 {[%clk 0:00:16]} 45. Kb6 {[%clk 0:01:38]}  Bd5 {[%clk 0:00:12]} 46. Rc8 {[%clk 0:01:37]}  Ra1 {[%clk 0:00:06]} 47. Rxb5 {[%clk 0:01:36]}  Rh1 {[%clk 0:00:06]} 48. a7 {[%clk 0:01:34]}  Bf3 {[%clk 0:00:05]} 49. Rb3 {[%clk 0:01:31]}  Bd5 {[%clk 0:00:04]} 50. Rd3 {[%clk 0:01:31]}  Be4 {[%clk 0:00:04]} 51. Rd4 {[%clk 0:01:31]}  Bf3 {[%clk 0:00:04]} 52. Rc3 {[%clk 0:01:31]}  Bg2 {[%clk 0:00:03]} 53. Ra4 {[%clk 0:01:26]} 1-0


[Site "https://www.chess.com"]

[Event "Titled Tuesday Blitz February 28 Early 2023"]
[White "Liu, Casper"]
[Black "Cabezas Solano, David Alejandro"]
[WhiteFideId "1454153"]
[BlackFideId "6507522"]
[WhiteElo "2221"]
[BlackElo "2030"]
[Result "0-1"]
[Round "11"]
[TimeControl "180+2"]
[Date "2023.02.28"]
[WhiteClock "0:01:49"]
[BlackClock "0:00:19"]

1. d4 {[%clk 0:03:00]}  Nf6 {[%clk 0:02:59]} 2. c4 {[%clk 0:03:01]}  e6 {[%clk 0:02:57]} 3. Nc3 {[%clk 0:03:01]}  d5 {[%clk 0:02:57]} 4. cxd5 {[%clk 0:03:00]}  exd5 {[%clk 0:02:58]} 5. Bg5 {[%clk 0:03:00]}  Be7 {[%clk 0:02:58]} 6. e3 {[%clk 0:03:01]}  c6 {[%clk 0:02:58]} 7. Qc2 {[%clk 0:03:01]}  O-O {[%clk 0:02:58]} 8. Bd3 {[%clk 0:03:02]}  Nbd7 {[%clk 0:02:58]} 9. Nge2 {[%clk 0:03:01]}  Re8 {[%clk 0:02:57]} 10. O-O {[%clk 0:03:02]}  Nf8 {[%clk 0:02:57]} 11. Rae1 {[%clk 0:03:02]}  g6 {[%clk 0:02:49]} 12. f3 {[%clk 0:02:59]}  b5 {[%clk 0:02:45]} 13. e4 {[%clk 0:02:58]}  Ne6 {[%clk 0:02:40]} 14. exd5 {[%clk 0:02:41]}  Nxg5 {[%clk 0:02:20]} 15. dxc6 {[%clk 0:02:39]}  b4 {[%clk 0:02:13]} 16. Ne4 {[%clk 0:02:28]}  Ngxe4 {[%clk 0:02:10]} 17. fxe4 {[%clk 0:02:29]}  Qb6 {[%clk 0:01:59]} 18. Bc4 {[%clk 0:02:20]}  Be6 {[%clk 0:01:53]} 19. Bxe6 {[%clk 0:02:06]}  fxe6 {[%clk 0:01:54]} 20. Qc4 {[%clk 0:02:06]}  Bd8 {[%clk 0:01:29]} 21. Nf4 {[%clk 0:02:06]}  Rc8 {[%clk 0:01:24]} 22. Rc1 {[%clk 0:01:53]}  Nxe4 {[%clk 0:01:03]} 23. Nxe6 {[%clk 0:01:53]}  Nd2 {[%clk 0:01:01]} 24. Qd5 {[%clk 0:01:51]}  Nxf1 {[%clk 0:00:42]} 25. Rxf1 {[%clk 0:01:48]}  Qxc6 {[%clk 0:00:35]} 26. Qxc6 {[%clk 0:01:46]}  Rxc6 {[%clk 0:00:33]} 27. d5 {[%clk 0:01:47]}  Rd6 {[%clk 0:00:31]} 28. Rc1 {[%clk 0:01:47]}  Rxd5 {[%clk 0:00:30]} 29. Nf4 {[%clk 0:01:47]}  Bb6+ {[%clk 0:00:29]} 30. Kh1 {[%clk 0:01:46]}  Rf5 {[%clk 0:00:28]} 31. Nd3 {[%clk 0:01:46]}  a5 {[%clk 0:00:26]} 32. h3 {[%clk 0:01:46]}  Rd8 {[%clk 0:00:25]} 33. Rc6 {[%clk 0:01:46]}  Rxd3 {[%clk 0:00:24]} 34. Rxb6 {[%clk 0:01:47]}  Rf2 {[%clk 0:00:25]} 35. Kh2 {[%clk 0:01:47]}  Rdd2 {[%clk 0:00:25]} 36. Kg3 {[%clk 0:01:48]}  Rxg2+ {[%clk 0:00:25]} 37. Kh4 {[%clk 0:01:49]}  Rd4# {[%clk 0:00:19]} 0-1


[Site "https://www.chess.com"]

[Event "Titled Tuesday Blitz February 28 Early 2023"]
[White "Bochnicka, Vladimir"]
[Black "Bulatova, Kamaliya"]
[WhiteFideId "14943450"]
[BlackFideId "34111546"]
[WhiteElo "2094"]
[BlackElo "2039"]
[Result "1-0"]
[Round "11"]
[TimeControl "180+2"]
[Date "2023.02.28"]
[WhiteClock "0:02:54"]
[BlackClock "0:02:35"]

1. e4 {[%clk 0:03:00]}  c5 {[%clk 0:02:58]} 2. Nf3 {[%clk 0:03:01]}  d6 {[%clk 0:02:58]} 3. d4 {[%clk 0:03:01]}  cxd4 {[%clk 0:02:58]} 4. Nxd4 {[%clk 0:03:02]}  Nf6 {[%clk 0:02:59]} 5. Nc3 {[%clk 0:03:03]}  a6 {[%clk 0:02:59]} 6. Be3 {[%clk 0:03:04]}  e5 {[%clk 0:02:59]} 7. Nb3 {[%clk 0:03:04]}  Be6 {[%clk 0:02:59]} 8. f4 {[%clk 0:03:04]}  b5 {[%clk 0:02:57]} 9. f5 {[%clk 0:03:04]}  Bc4 {[%clk 0:02:57]} 10. Bxc4 {[%clk 0:02:59]}  bxc4 {[%clk 0:02:58]} 11. Nd2 {[%clk 0:03:00]}  d5 {[%clk 0:02:52]} 12. exd5 {[%clk 0:03:00]}  Nxd5 {[%clk 0:02:52]} 13. Nxc4 {[%clk 0:03:00]}  Qh4+ {[%clk 0:02:50]} 14. Bf2 {[%clk 0:02:57]}  Qxc4 {[%clk 0:02:50]} 15. Qxd5 {[%clk 0:02:54]}  Qxd5 {[%clk 0:02:41]} 16. Nxd5 {[%clk 0:02:55]}  Kd7 {[%clk 0:02:35]} 17. Nb6+ {[%clk 0:02:54]} 1-0


[Site "https://www.chess.com"]

[Event "Titled Tuesday Blitz February 28 Early 2023"]
[White "Klepikov, Nikita"]
[Black "Ramirez Allo, Eduardo"]
[WhiteFideId "24145220"]
[BlackFideId "2224178"]
[WhiteElo "2025"]
[BlackElo "2445"]
[Result "0-1"]
[Round "11"]
[TimeControl "180+2"]
[Date "2023.02.28"]
[WhiteClock "0:00:13"]
[BlackClock "0:00:51"]

1. e4 {[%clk 0:02:57]}  c5 {[%clk 0:03:00]} 2. Nf3 {[%clk 0:02:57]}  d6 {[%clk 0:03:00]} 3. d4 {[%clk 0:02:58]}  cxd4 {[%clk 0:03:01]} 4. Nxd4 {[%clk 0:02:59]}  Nf6 {[%clk 0:03:02]} 5. Nc3 {[%clk 0:03:00]}  a6 {[%clk 0:03:03]} 6. Bc4 {[%clk 0:03:00]}  e6 {[%clk 0:03:03]} 7. Bb3 {[%clk 0:03:01]}  Be7 {[%clk 0:03:04]} 8. g4 {[%clk 0:03:01]}  h6 {[%clk 0:03:03]} 9. Be3 {[%clk 0:03:00]}  b5 {[%clk 0:03:03]} 10. Qe2 {[%clk 0:02:46]}  Bb7 {[%clk 0:03:00]} 11. Bxe6 {[%clk 0:02:34]}  fxe6 {[%clk 0:02:58]} 12. Nxe6 {[%clk 0:02:35]}  Qa5 {[%clk 0:02:55]} 13. Nxg7+ {[%clk 0:02:32]}  Kf7 {[%clk 0:02:56]} 14. Nf5 {[%clk 0:02:29]}  b4 {[%clk 0:02:52]} 15. Nd5 {[%clk 0:02:16]}  Nxd5 {[%clk 0:02:43]} 16. exd5 {[%clk 0:02:15]}  Qxd5 {[%clk 0:02:44]} 17. Rg1 {[%clk 0:01:57]}  Nc6 {[%clk 0:02:20]} 18. Rd1 {[%clk 0:01:38]}  Qxa2 {[%clk 0:02:19]} 19. Qf3 {[%clk 0:01:30]}  Ke8 {[%clk 0:01:38]} 20. Nxd6+ {[%clk 0:01:11]}  Bxd6 {[%clk 0:01:33]} 21. Rxd6 {[%clk 0:01:11]}  Qa1+ {[%clk 0:01:23]} 22. Rd1 {[%clk 0:01:11]}  Qxb2 {[%clk 0:01:23]} 23. Qe4+ {[%clk 0:01:05]}  Qe5 {[%clk 0:01:23]} 24. Qg6+ {[%clk 0:01:05]}  Ke7 {[%clk 0:01:17]} 25. Kf1 {[%clk 0:00:44]}  Rag8 {[%clk 0:01:16]} 26. Qd3 {[%clk 0:00:34]}  Rd8 {[%clk 0:01:15]} 27. Qe2 {[%clk 0:00:24]}  Rxd1+ {[%clk 0:01:15]} 28. Qxd1 {[%clk 0:00:25]}  Rd8 {[%clk 0:01:16]} 29. Qc1 {[%clk 0:00:18]}  Nd4 {[%clk 0:01:04]} 30. Rg3 {[%clk 0:00:14]}  Qe4 {[%clk 0:00:56]} 31. Bxh6 {[%clk 0:00:13]}  Qh1+ {[%clk 0:00:52]} 32. Rg1 {[%clk 0:00:13]}  Bg2+ {[%clk 0:00:51]} 0-1


[Site "https://www.chess.com"]

[Event "Titled Tuesday Blitz February 28 Early 2023"]
[White "Levitan, Caleb Levi"]
[Black "Sreyas Payyappat"]
[WhiteFideId "14332620"]
[BlackFideId "46674969"]
[WhiteElo "1963"]
[BlackElo "2083"]
[Result "0-1"]
[Round "11"]
[TimeControl "180+2"]
[Date "2023.02.28"]
[WhiteClock "0:00:01"]
[BlackClock "0:00:12"]

1. d4 {[%clk 0:02:58]}  Nf6 {[%clk 0:02:59]} 2. Bf4 {[%clk 0:02:57]}  c5 {[%clk 0:02:59]} 3. d5 {[%clk 0:02:52]}  e6 {[%clk 0:02:59]} 4. Nc3 {[%clk 0:02:45]}  exd5 {[%clk 0:02:51]} 5. Nxd5 {[%clk 0:02:44]}  Nxd5 {[%clk 0:02:52]} 6. Qxd5 {[%clk 0:02:44]}  Nc6 {[%clk 0:02:47]} 7. Nf3 {[%clk 0:02:34]}  d6 {[%clk 0:02:42]} 8. e4 {[%clk 0:02:23]}  Be6 {[%clk 0:02:39]} 9. Qd2 {[%clk 0:02:20]}  Be7 {[%clk 0:02:37]} 10. Bb5 {[%clk 0:02:15]}  O-O {[%clk 0:02:36]} 11. O-O {[%clk 0:02:12]}  a6 {[%clk 0:02:29]} 12. Be2 {[%clk 0:02:07]}  d5 {[%clk 0:02:10]} 13. exd5 {[%clk 0:02:03]}  Qxd5 {[%clk 0:02:11]} 14. Rfd1 {[%clk 0:01:30]}  Rfd8 {[%clk 0:01:59]} 15. Qe3 {[%clk 0:01:08]}  Nd4 {[%clk 0:01:45]} 16. Nxd4 {[%clk 0:01:00]}  cxd4 {[%clk 0:01:45]} 17. Qg3 {[%clk 0:00:57]}  Bf6 {[%clk 0:01:41]} 18. Bf3 {[%clk 0:00:52]}  Qb5 {[%clk 0:01:37]} 19. Bc1 {[%clk 0:00:12]}  Rac8 {[%clk 0:01:29]} 20. Be4 {[%clk 0:00:08]}  Bf5 {[%clk 0:01:28]} 21. Bxf5 {[%clk 0:00:07]}  Qxf5 {[%clk 0:01:29]} 22. Bf4 {[%clk 0:00:05]}  Rxc2 {[%clk 0:01:24]} 23. b3 {[%clk 0:00:04]}  d3 {[%clk 0:01:21]} 24. Rac1 {[%clk 0:00:02]}  Rxc1 {[%clk 0:01:05]} 25. Rxc1 {[%clk 0:00:03]}  d2 {[%clk 0:01:05]} 26. Rd1 {[%clk 0:00:03]}  Qc2 {[%clk 0:00:48]} 27. Qf3 {[%clk 0:00:03]}  Bc3 {[%clk 0:00:35]} 28. Qe2 {[%clk 0:00:03]}  h6 {[%clk 0:00:19]} 29. h3 {[%clk 0:00:03]}  Ba5 {[%clk 0:00:12]} 30. a4 {[%clk 0:00:01]}  Bb4 {[%clk 0:00:12]} 0-1


[Site "https://www.chess.com"]

[Event "Titled Tuesday Blitz February 28 Early 2023"]
[White "Sanchez, Robert"]
[Black "Ardila, Oscar Humberto"]
[WhiteFideId "2034360"]
[BlackFideId "4404742"]
[WhiteElo "2428"]
[BlackElo "1946"]
[Result "1-0"]
[Round "11"]
[TimeControl "180+2"]
[Date "2023.02.28"]
[WhiteClock "0:00:53"]
[BlackClock "0:00:27"]

1. e4 {[%clk 0:03:00]}  e5 {[%clk 0:02:59]} 2. Nf3 {[%clk 0:03:00]}  Nf6 {[%clk 0:03:00]} 3. Nxe5 {[%clk 0:03:00]}  d6 {[%clk 0:03:00]} 4. Nf3 {[%clk 0:03:01]}  Nxe4 {[%clk 0:03:01]} 5. Nc3 {[%clk 0:03:01]}  Nxc3 {[%clk 0:03:01]} 6. dxc3 {[%clk 0:03:00]}  Be7 {[%clk 0:03:02]} 7. Bd3 {[%clk 0:03:00]}  O-O {[%clk 0:03:02]} 8. Be3 {[%clk 0:03:00]}  Nd7 {[%clk 0:03:03]} 9. Qd2 {[%clk 0:03:00]}  Nf6 {[%clk 0:03:03]} 10. O-O-O {[%clk 0:03:00]}  c6 {[%clk 0:03:03]} 11. Kb1 {[%clk 0:03:01]}  b5 {[%clk 0:03:00]} 12. h3 {[%clk 0:03:01]}  Qa5 {[%clk 0:02:59]} 13. Nd4 {[%clk 0:02:57]}  Bd7 {[%clk 0:02:52]} 14. g4 {[%clk 0:02:57]}  Nd5 {[%clk 0:02:50]} 15. Nf5 {[%clk 0:02:49]}  Bxf5 {[%clk 0:02:46]} 16. Bxf5 {[%clk 0:02:42]}  Bf6 {[%clk 0:02:46]} 17. g5 {[%clk 0:02:38]}  Bxc3 {[%clk 0:02:41]} 18. Qd3 {[%clk 0:02:27]}  Qb4 {[%clk 0:02:37]} 19. Bc1 {[%clk 0:02:25]}  Be5 {[%clk 0:01:52]} 20. a3 {[%clk 0:02:05]}  Qc5 {[%clk 0:01:01]} 21. Bxh7+ {[%clk 0:02:04]}  Kh8 {[%clk 0:01:01]} 22. Be4 {[%clk 0:02:04]}  Nb6 {[%clk 0:00:53]} 23. f4 {[%clk 0:01:59]}  d5 {[%clk 0:00:49]} 24. fxe5 {[%clk 0:01:42]}  dxe4 {[%clk 0:00:49]} 25. Qxe4 {[%clk 0:01:42]}  Nc4 {[%clk 0:00:48]} 26. g6 {[%clk 0:01:25]}  fxg6 {[%clk 0:00:47]} 27. e6 {[%clk 0:01:21]}  Rae8 {[%clk 0:00:46]} 28. Qxg6 {[%clk 0:01:17]}  Qf5 {[%clk 0:00:46]} 29. Qxf5 {[%clk 0:01:13]}  Rxf5 {[%clk 0:00:46]} 30. Rhe1 {[%clk 0:01:13]}  Rf6 {[%clk 0:00:46]} 31. e7 {[%clk 0:01:13]}  Rf3 {[%clk 0:00:43]} 32. Rd8 {[%clk 0:01:10]}  Nd6 {[%clk 0:00:40]} 33. Rxd6 {[%clk 0:01:10]}  Kg8 {[%clk 0:00:32]} 34. Rxc6 {[%clk 0:01:09]}  Kf7 {[%clk 0:00:31]} 35. Ra6 {[%clk 0:01:08]}  Rxh3 {[%clk 0:00:31]} 36. Rxa7 {[%clk 0:01:08]}  Rh5 {[%clk 0:00:31]} 37. Rd7 {[%clk 0:01:00]}  g5 {[%clk 0:00:31]} 38. Rd5 {[%clk 0:01:00]}  Kg6 {[%clk 0:00:30]} 39. Rxb5 {[%clk 0:00:59]}  g4 {[%clk 0:00:28]} 40. Rxh5 {[%clk 0:00:59]}  Kxh5 {[%clk 0:00:29]} 41. Bf4 {[%clk 0:00:57]}  Kg6 {[%clk 0:00:28]} 42. Bg3 {[%clk 0:00:57]}  Kf5 {[%clk 0:00:29]} 43. c4 {[%clk 0:00:55]}  Kf6 {[%clk 0:00:27]} 44. b4 {[%clk 0:00:54]}  Kf5 {[%clk 0:00:27]} 45. c5 {[%clk 0:00:53]} 1-0


[Site "https://www.chess.com"]

[Event "Titled Tuesday Blitz February 28 Early 2023"]
[White "Bogaudinov, Rushan"]
[Black "Kuchava, Ana"]
[WhiteFideId "4129288"]
[BlackFideId "13605348"]
[WhiteElo "2063"]
[BlackElo "2001"]
[Result "1-0"]
[Round "11"]
[TimeControl "180+2"]
[Date "2023.02.28"]
[WhiteClock "0:01:33"]
[BlackClock "0:00:07"]

1. a3 {[%clk 0:02:59]}  d5 {[%clk 0:02:58]} 2. Nf3 {[%clk 0:02:58]}  Nf6 {[%clk 0:02:56]} 3. e3 {[%clk 0:02:56]}  c5 {[%clk 0:02:46]} 4. b4 {[%clk 0:02:55]}  e6 {[%clk 0:02:41]} 5. bxc5 {[%clk 0:02:52]}  Bxc5 {[%clk 0:02:41]} 6. d4 {[%clk 0:02:53]}  Bd6 {[%clk 0:02:31]} 7. c4 {[%clk 0:02:53]}  O-O {[%clk 0:02:24]} 8. Nc3 {[%clk 0:02:51]}  a6 {[%clk 0:02:10]} 9. c5 {[%clk 0:02:51]}  Bc7 {[%clk 0:02:02]} 10. Bb2 {[%clk 0:02:51]}  Nc6 {[%clk 0:02:02]} 11. Be2 {[%clk 0:02:49]}  b6 {[%clk 0:01:55]} 12. cxb6 {[%clk 0:02:48]}  Bxb6 {[%clk 0:01:55]} 13. O-O {[%clk 0:02:48]}  Bd7 {[%clk 0:01:52]} 14. Na4 {[%clk 0:02:46]}  Bc7 {[%clk 0:01:31]} 15. Nc5 {[%clk 0:02:46]}  Bc8 {[%clk 0:01:29]} 16. Rc1 {[%clk 0:02:44]}  Na5 {[%clk 0:01:26]} 17. g3 {[%clk 0:02:42]}  Ne4 {[%clk 0:01:04]} 18. Nxe4 {[%clk 0:02:39]}  dxe4 {[%clk 0:01:05]} 19. Nd2 {[%clk 0:02:40]}  Bb7 {[%clk 0:00:54]} 20. Qc2 {[%clk 0:02:37]}  Rc8 {[%clk 0:00:51]} 21. Qb1 {[%clk 0:02:37]}  f6 {[%clk 0:00:46]} 22. a4 {[%clk 0:02:33]}  f5 {[%clk 0:00:43]} 23. Ba3 {[%clk 0:02:33]}  Re8 {[%clk 0:00:39]} 24. Nc4 {[%clk 0:02:26]}  Bd5 {[%clk 0:00:38]} 25. Nxa5 {[%clk 0:02:18]}  Bxa5 {[%clk 0:00:39]} 26. Bxa6 {[%clk 0:02:18]}  Rb8 {[%clk 0:00:25]} 27. Bb5 {[%clk 0:02:17]}  Qf6 {[%clk 0:00:17]} 28. Bd6 {[%clk 0:02:16]}  Rb7 {[%clk 0:00:12]} 29. Be5 {[%clk 0:01:59]}  Qh6 {[%clk 0:00:11]} 30. Bxe8 {[%clk 0:01:57]}  Rxb1 {[%clk 0:00:10]} 31. Rxb1 {[%clk 0:01:57]}  Kf8 {[%clk 0:00:10]} 32. Rb8 {[%clk 0:01:56]}  Bc7 {[%clk 0:00:10]} 33. Bxc7 {[%clk 0:01:54]}  Ke7 {[%clk 0:00:09]} 34. Bd8+ {[%clk 0:01:48]}  Kd6 {[%clk 0:00:08]} 35. Rb6+ {[%clk 0:01:45]}  Bc6 {[%clk 0:00:07]} 36. Rxc6+ {[%clk 0:01:44]}  Kd5 {[%clk 0:00:07]} 37. Rfc1 {[%clk 0:01:33]} 1-0


[Site "https://www.chess.com"]

[Event "Titled Tuesday Blitz February 28 Early 2023"]
[White "Gutkin, Ilya"]
[Black "Kiseleva, Arina"]
[WhiteFideId "16203470"]
[BlackFideId "4164989"]
[WhiteElo "2265"]
[BlackElo "1756"]
[Result "1-0"]
[Round "11"]
[TimeControl "180+2"]
[Date "2023.02.28"]
[WhiteClock "0:00:06"]
[BlackClock "0:00:02"]

1. e4 {[%clk 0:03:00]}  c6 {[%clk 0:02:59]} 2. d4 {[%clk 0:03:01]}  d5 {[%clk 0:02:59]} 3. Nc3 {[%clk 0:03:01]}  dxe4 {[%clk 0:02:59]} 4. Nxe4 {[%clk 0:03:02]}  Nf6 {[%clk 0:02:59]} 5. Nxf6+ {[%clk 0:03:01]}  exf6 {[%clk 0:03:00]} 6. Nf3 {[%clk 0:03:02]}  Bd6 {[%clk 0:02:50]} 7. Bd3 {[%clk 0:03:02]}  O-O {[%clk 0:02:49]} 8. Be3 {[%clk 0:03:02]}  a5 {[%clk 0:02:42]} 9. Qd2 {[%clk 0:03:01]}  a4 {[%clk 0:02:40]} 10. O-O {[%clk 0:03:00]}  Bg4 {[%clk 0:02:38]} 11. Ne1 {[%clk 0:02:54]}  Bc7 {[%clk 0:02:32]} 12. h3 {[%clk 0:02:53]}  Qd6 {[%clk 0:02:25]} 13. f4 {[%clk 0:02:51]}  Bc8 {[%clk 0:02:17]} 14. Nf3 {[%clk 0:02:49]}  Nd7 {[%clk 0:02:03]} 15. Nh4 {[%clk 0:02:23]}  g6 {[%clk 0:01:57]} 16. Rae1 {[%clk 0:02:21]}  b6 {[%clk 0:01:33]} 17. Nf3 {[%clk 0:02:20]}  Ba6 {[%clk 0:01:31]} 18. f5 {[%clk 0:02:15]}  Bxd3 {[%clk 0:01:20]} 19. Qxd3 {[%clk 0:02:16]}  Rfe8 {[%clk 0:01:10]} 20. fxg6 {[%clk 0:02:15]}  fxg6 {[%clk 0:01:09]} 21. Bf2 {[%clk 0:02:04]}  b5 {[%clk 0:01:05]} 22. c3 {[%clk 0:01:53]}  Nb6 {[%clk 0:01:04]} 23. Nd2 {[%clk 0:01:52]}  f5 {[%clk 0:01:02]} 24. Nf3 {[%clk 0:01:49]}  Nd5 {[%clk 0:01:00]} 25. Ne5 {[%clk 0:01:43]}  Nf6 {[%clk 0:00:48]} 26. Bg3 {[%clk 0:01:40]}  Nh5 {[%clk 0:00:44]} 27. Bh2 {[%clk 0:01:36]}  f4 {[%clk 0:00:28]} 28. Bxf4 {[%clk 0:01:28]}  Nxf4 {[%clk 0:00:27]} 29. Rxf4 {[%clk 0:01:28]}  Rxe5 {[%clk 0:00:25]} 30. Rxe5 {[%clk 0:01:25]}  c5 {[%clk 0:00:18]} 31. Qe4 {[%clk 0:01:17]}  cxd4 {[%clk 0:00:16]} 32. Re8+ {[%clk 0:01:05]}  Rxe8 {[%clk 0:00:15]} 33. Qxe8+ {[%clk 0:01:06]}  Kg7 {[%clk 0:00:15]} 34. Qf7+ {[%clk 0:01:02]}  Kh6 {[%clk 0:00:11]} 35. Rh4+ {[%clk 0:00:38]}  Kg5 {[%clk 0:00:11]} 36. Rg4+ {[%clk 0:00:38]}  Kh6 {[%clk 0:00:10]} 37. Rxd4 {[%clk 0:00:15]}  Bb6 {[%clk 0:00:08]} 38. Qf2 {[%clk 0:00:14]}  Bxd4 {[%clk 0:00:07]} 39. Qxd4 {[%clk 0:00:15]}  Qc6 {[%clk 0:00:04]} 40. Kf2 {[%clk 0:00:13]}  g5 {[%clk 0:00:04]} 41. Kg3 {[%clk 0:00:11]}  Kg6 {[%clk 0:00:03]} 42. Kf2 {[%clk 0:00:10]}  h5 {[%clk 0:00:02]} 43. Qd3+ {[%clk 0:00:09]}  Kh6 {[%clk 0:00:02]} 44. Qd4 {[%clk 0:00:09]}  h4 {[%clk 0:00:02]} 45. Qe3 {[%clk 0:00:06]}  Qd7 {[%clk 0:00:02]} 46. Qd4 {[%clk 0:00:06]}  Qf7+ {[%clk 0:00:01]} 47. Ke2 {[%clk 0:00:06]}  Qxa2 {[%clk 0:00:02]} 48. Qb6+ {[%clk 0:00:06]} 1-0


[Site "https://www.chess.com"]

[Event "Titled Tuesday Blitz February 28 Early 2023"]
[White "Mohammed, Zozek Salah Mohammed"]
[Black "Sailer, Mike"]
[WhiteFideId "4803361"]
[BlackFideId "2012901"]
[WhiteElo "2211"]
[BlackElo "2109"]
[Result "1-0"]
[Round "11"]
[TimeControl "180+2"]
[Date "2023.02.28"]
[WhiteClock "0:00:12"]
[BlackClock "0:00:01"]

1. d4 {[%clk 0:03:00]}  d5 {[%clk 0:02:56]} 2. Nf3 {[%clk 0:03:01]}  Bf5 {[%clk 0:02:56]} 3. g3 {[%clk 0:03:02]}  e6 {[%clk 0:02:55]} 4. Bg2 {[%clk 0:03:03]}  Nf6 {[%clk 0:02:56]} 5. O-O {[%clk 0:03:01]}  c6 {[%clk 0:02:56]} 6. c4 {[%clk 0:03:01]}  Nbd7 {[%clk 0:02:54]} 7. Nc3 {[%clk 0:03:01]}  Be7 {[%clk 0:02:53]} 8. Nd2 {[%clk 0:03:02]}  O-O {[%clk 0:02:52]} 9. e4 {[%clk 0:03:02]}  dxe4 {[%clk 0:02:52]} 10. Ndxe4 {[%clk 0:03:03]}  Nxe4 {[%clk 0:02:52]} 11. Nxe4 {[%clk 0:03:04]}  Nf6 {[%clk 0:02:53]} 12. Nxf6+ {[%clk 0:02:57]}  Bxf6 {[%clk 0:02:53]} 13. Be3 {[%clk 0:02:58]}  Qa5 {[%clk 0:02:50]} 14. a3 {[%clk 0:02:56]}  Rfd8 {[%clk 0:02:49]} 15. b4 {[%clk 0:02:56]}  Qc7 {[%clk 0:02:48]} 16. Qd2 {[%clk 0:02:47]}  h6 {[%clk 0:02:47]} 17. Rfd1 {[%clk 0:02:44]}  Rd7 {[%clk 0:02:46]} 18. Bf4 {[%clk 0:02:28]}  Qd8 {[%clk 0:02:46]} 19. Be3 {[%clk 0:02:21]}  Bg4 {[%clk 0:02:45]} 20. f3 {[%clk 0:02:20]}  Bf5 {[%clk 0:02:46]} 21. Qf2 {[%clk 0:02:21]}  e5 {[%clk 0:02:39]} 22. g4 {[%clk 0:01:50]}  Bg6 {[%clk 0:02:30]} 23. d5 {[%clk 0:01:47]}  cxd5 {[%clk 0:02:30]} 24. cxd5 {[%clk 0:01:41]}  Rxd5 {[%clk 0:02:31]} 25. Rxd5 {[%clk 0:01:40]}  Qxd5 {[%clk 0:02:31]} 26. f4 {[%clk 0:01:40]}  Be4 {[%clk 0:02:26]} 27. fxe5 {[%clk 0:01:36]}  Bxe5 {[%clk 0:02:22]} 28. Re1 {[%clk 0:01:31]}  Bxg2 {[%clk 0:02:19]} 29. Qxg2 {[%clk 0:01:32]}  Qxg2+ {[%clk 0:02:15]} 30. Kxg2 {[%clk 0:01:33]}  Bb2 {[%clk 0:02:05]} 31. a4 {[%clk 0:01:30]}  Re8 {[%clk 0:01:59]} 32. Kf3 {[%clk 0:01:21]}  a6 {[%clk 0:01:48]} 33. Rd1 {[%clk 0:01:19]}  Re7 {[%clk 0:01:41]} 34. Bc5 {[%clk 0:01:17]}  Rc7 {[%clk 0:01:33]} 35. a5 {[%clk 0:01:15]}  f6 {[%clk 0:01:29]} 36. Ke4 {[%clk 0:01:12]}  Kf7 {[%clk 0:01:20]} 37. h4 {[%clk 0:01:13]}  Be5 {[%clk 0:01:03]} 38. Rd8 {[%clk 0:01:07]}  Bg3 {[%clk 0:00:41]} 39. h5 {[%clk 0:01:06]}  Ke6 {[%clk 0:00:32]} 40. Rg8 {[%clk 0:01:01]}  Rf7 {[%clk 0:00:28]} 41. Bf8 {[%clk 0:00:46]}  Be1 {[%clk 0:00:23]} 42. Bc5 {[%clk 0:00:44]}  Kd7 {[%clk 0:00:19]} 43. Kd5 {[%clk 0:00:41]}  f5 {[%clk 0:00:13]} 44. Rb8 {[%clk 0:00:39]}  fxg4 {[%clk 0:00:09]} 45. Rxb7+ {[%clk 0:00:39]}  Ke8 {[%clk 0:00:09]} 46. Rb8+ {[%clk 0:00:38]}  Kd7 {[%clk 0:00:10]} 47. Rb7+ {[%clk 0:00:33]}  Ke8 {[%clk 0:00:10]} 48. Rb6 {[%clk 0:00:12]}  Rd7+ {[%clk 0:00:06]} 49. Ke6 {[%clk 0:00:11]}  Rd8 {[%clk 0:00:01]} 50. Rb7 {[%clk 0:00:12]} 1-0


[Site "https://www.chess.com"]